bitfinex/quotes_ETHUSD_20220103
["timestamp","ask_amount","ask_price","bid_price","bid_amount"]
[1641217625091,1.76671931,3827.9,3827.7,1.19236229]
[1641217625889,1.22193586,3828.0,3827.8,1.19236229]
[1641217626188,1.22193586,3828.0,3827.8,1.84550229]
[1641217626589,1.22193586,3828.0,3827.9,1.19236229]
[1641217626792,0.00113685,3828.0,3827.9,1.19236229]
[1641217628397,1.28489191,3828.0,3827.9,1.19236229]
[1641217629045,0.00113685,3828.0,3827.9,1.19236229]
[1641217631647,2.53205579,3828.0,3827.9,1.19236229]
[1641217631847,1.3501182,3828.0,3827.9,1.19236229]
[1641217632688,0.00113685,3828.0,3827.9,1.19236229]
[1641217633687,2.53123721,3828.0,3827.9,1.19236229]
[1641217633888,0.00113685,3828.0,3827.9,1.19236229]
[1641217634292,2.51687956,3828.0,3827.9,1.19236229]
[1641217634488,0.00113685,3828.0,3827.9,1.19236229]
[1641217635491,2.50010789,3828.0,3827.9,1.19236229]
[1641217635693,0.00113685,3828.0,3827.9,1.19236229]
[1641217641486,1.76556875,3828.0,3827.9,1.19236229]
[1641217641687,1.76556875,3828.0,3827.9,1.49236229]
[1641217641887,1.76556875,3828.0,3827.9,1.79236229]
[1641217643292,1.71556875,3828.0,3827.9,1.79236229]
[1641217648787,4.58312957,3828.0,3827.9,1.19236229]
[1641217648989,4.58312957,3828.0,3827.6,0.06171272]
[1641217648990,7.0,3827.9,3827.6,0.06171272]
[1641217649191,7.25,3827.6,3827.5,1.32265948]
[1641217649390,7.25,3827.6,3827.1,2.35120355]
[1641217649391,10.49856082,3827.6,3827.3,1.32265948]
[1641217649888,1.08707736,3827.5,3827.3,1.32265948]
[1641217650092,9.581,3827.4,3827.3,1.32265948]
[1641217650490,9.581,3827.4,3827.3,0.00284212]
[1641217650691,10.23443,3827.4,3827.3,0.00284212]
[1641217650891,0.6534207,3827.1,3826.6,0.00682109]
[1641217651238,1.0,3826.9,3826.6,0.00682109]
[1641217651437,2.55987759,3826.8,3826.6,0.00682109]
[1641217652240,2.52710081,3826.8,3826.6,0.00682109]
[1641217652438,2.515937,3826.8,3826.6,0.00682109]
[1641217652641,2.3068508,3826.9,3826.6,0.00682109]
[1641217652846,2.51595593,3826.8,3826.6,0.00682109]
[1641217653041,1.65343,3826.9,3826.6,0.00682109]
[1641217654245,2.58670777,3826.8,3826.6,0.00682109]
[1641217654444,1.65343,3826.9,3826.6,0.00682109]
[1641217654644,2.55029472,3826.8,3826.6,0.00682109]
[1641217654845,1.65343,3826.9,3826.6,0.00682109]
[1641217656090,1.77643224,3827.2,3826.7,1.30668]
[1641217656290,1.77643224,3827.2,3826.8,0.65328]
[1641217656489,1.77643224,3827.2,3826.8,1.25896424]
[1641217656689,1.77643224,3827.2,3826.9,0.00511582]
[1641217657091,1.83713521,3827.4,3826.9,0.00511582]
[1641217657289,1.77643224,3827.4,3827.1,1.95968]
[1641217657689,1.77643224,3827.4,3827.2,0.00341055]
[1641217657893,1.77643224,3827.6,3827.2,0.00341055]
[1641217658094,1.77643224,3827.6,3827.2,0.30341055]
[1641217658932,1.77643224,3827.6,3827.3,0.65323]
[1641217659337,1.77643224,3827.6,3827.4,0.0022737]
[1641217660141,2.95219739,3827.7,3827.4,0.0022737]
[1641217660342,2.95219739,3827.7,3827.5,1.30644]
[1641217660747,1.17576515,3827.7,3827.6,0.00113685]
[1641217661342,1.12576515,3827.7,3827.6,0.00113685]
[1641217661643,3.70480519,3827.7,3827.6,0.00113685]
[1641217662043,5.48123743,3827.7,3827.6,0.00113685]
[1641217663089,3.74022733,3827.7,3827.6,0.00113685]
[1641217663490,4.39352733,3827.7,3827.6,0.00113685]
[1641217663692,3.74022733,3827.7,3827.6,0.00113685]
[1641217664893,5.51680709,3827.7,3827.6,0.00113685]
[1641217666236,3.74022733,3827.7,3827.6,0.00113685]
[1641217666444,3.63383317,3827.7,3827.6,0.00113685]
[1641217666740,3.65670216,3827.7,3827.6,0.00113685]
[1641217666938,1.12576515,3827.7,3827.6,0.00113685]
[1641217667140,3.32152852,3827.8,3827.6,0.00113685]
[1641217667340,2.66823852,3827.8,3827.6,0.65439685]
[1641217668045,2.66823852,3827.9,3827.6,0.65439685]
[1641217668646,1.38433462,3828.0,3827.6,0.65439685]
[1641217669044,0.00113684,3828.0,3827.6,0.65439685]
[1641217669244,0.00113684,3828.0,3827.6,1.30761685]
[1641217669448,2.13693135,3827.9,3827.6,1.30761685]
[1641217669646,2.13693135,3827.9,3827.7,0.65322]
[1641217672691,0.00113684,3828.0,3827.8,0.65321]
[1641217672692,2.13806819,3828.0,3827.8,0.65321]
[1641217672892,2.13806819,3828.0,3827.8,1.30641]
[1641217673090,2.52740407,3828.0,3827.8,1.30641]
[1641217673288,0.00113684,3828.0,3827.8,1.30641]
[1641217675458,2.49713042,3828.0,3827.8,1.30641]
[1641217675659,0.00113684,3828.0,3827.8,1.30641]
[1641217679295,0.00113684,3828.0,3827.8,0.65321]
[1641217679595,0.00113684,3828.0,3827.8,1.30645]
[1641217680195,0.00113684,3828.0,3827.8,1.60645]
[1641217680394,0.00113684,3828.0,3827.8,1.30645]
[1641217682245,2.53392775,3828.0,3827.8,1.30645]
[1641217683043,2.53392775,3828.0,3827.8,0.65321]
[1641217683242,3.18717775,3828.0,3827.8,0.65321]
[1641217683444,2.52975308,3827.9,3827.8,0.65321]
[1641217683842,0.65438684,3828.0,3827.8,0.65321]
[1641217684046,0.00113684,3828.0,3827.8,1.30644]
[1641217685292,2.49996815,3828.0,3827.8,0.65321]
[1641217686093,1.76436789,3827.9,3827.8,0.65321]
[1641217686294,1.76436789,3827.9,3827.6,0.65435685]
[1641217687490,1.76436789,3827.9,3827.7,0.79238324]
[1641217687694,4.34447919,3827.9,3827.7,0.79238324]
[1641217687896,4.28122008,3827.8,3827.7,0.79238324]
[1641217688293,6.45600252,3827.8,3827.7,0.79238324]
[1641217688494,3.93915033,3827.8,3827.7,0.79238324]
[1641217688747,6.5373693,3827.8,3827.7,0.79238324]
[1641217689252,5.42629411,3827.8,3827.6,0.00113685]
[1641217689448,5.5139554,3827.7,3827.6,0.00113685]
[1641217689745,1.16443773,3827.6,3827.4,0.0022737]
[1641217690848,2.17478244,3827.5,3827.4,0.78094719]
[1641217691046,4.69694527,3827.5,3827.4,0.78094719]
[1641217691448,2.17478244,3827.5,3827.4,0.78094719]
[1641217691850,4.73719745,3827.5,3827.4,0.78094719]
[1641217692047,4.73719745,3827.5,3827.4,0.0022737]
[1641217692497,4.76734758,3827.5,3827.4,0.0022737]
[1641217692901,6.53603637,3827.5,3827.4,0.0022737]
[1641217694300,6.53603637,3827.5,3827.2,0.65333]
[1641217694504,7.18937637,3827.5,3827.2,0.65333]
[1641217695102,7.18937637,3827.5,3827.1,0.78265246]
[1641217695103,7.62478244,3827.4,3827.3,0.77867349]
[1641217695302,11.30405854,3827.4,3827.3,0.77867349]
[1641217696545,1.34834736,3826.8,3826.6,0.06070176]
[1641217696944,1.34834736,3826.8,3826.7,0.00625266]
[1641217697148,2.56507703,3826.9,3826.7,0.00625266]
[1641217697350,2.56507703,3826.9,3826.7,0.76977762]
[1641217697754,3.21854173,3826.9,3826.8,0.00568424]
[1641217698051,3.87202173,3826.9,3826.8,0.00568424]
[1641217698353,5.08351888,3826.9,3826.8,0.00568424]
[1641217698750,5.08351888,3826.9,3826.8,0.7692092]
[1641217699351,5.46451888,3826.9,3826.8,0.7692092]
[1641217699552,2.89944185,3826.9,3826.8,0.7692092]
[1641217701595,2.24597715,3826.9,3826.8,0.7692092]
[1641217704049,2.24597715,3826.9,3826.8,0.00568424]
[1641217704349,2.24597715,3826.9,3826.1,0.00966321]
[1641217704852,0.6534661,3826.8,3826.1,0.00966321]
[1641217705053,0.65347,3826.7,3826.1,0.00966321]
[1641217706057,2.89937145,3826.9,3826.2,0.76140655]
[1641217706259,1.59249715,3826.9,3826.2,0.76140655]
[1641217706457,1.59249715,3826.9,3826.3,0.00852636]
[1641217707163,1.59249715,3826.9,3826.4,0.76140655]
[1641217707599,0.65345,3826.8,3826.5,0.00738951]
[1641217708194,1.3069136,3826.8,3826.5,0.00738951]
[1641217708394,0.6534636,3826.8,3826.5,0.00738951]
[1641217708598,0.65348,3826.7,3826.5,0.00738951]
[1641217709198,0.65348,3826.7,3826.6,0.76140655]
[1641217709600,0.65348,3826.7,3826.6,0.76822764]
[1641217712339,2.24593715,3826.9,3826.6,0.76822764]
[1641217712851,2.17792917,3826.7,3826.6,0.76822764]
[1641217713446,2.17792917,3826.8,3826.6,0.76822764]
[1641217714048,0.65347,3826.7,3826.6,0.00682109]
[1641217714447,0.65347,3826.7,3826.5,0.00738951]
[1641217714649,2.17792917,3826.8,3826.5,0.00738951]
[1641217714848,2.17792917,3826.8,3826.5,0.66080951]
[1641217715293,2.17792917,3826.8,3826.6,0.00682109]
[1641217715689,2.17792917,3826.8,3826.6,0.7678124]
[1641217716689,2.17792917,3826.8,3826.6,0.00682109]
[1641217717291,0.65347,3826.7,3826.4,0.66140794]
[1641217717695,0.65347,3826.7,3826.5,0.76837609]
[1641217717696,2.17792917,3826.6,3826.5,0.76837609]
[1641217719749,2.17792917,3826.8,3826.5,0.76837609]
[1641217720154,2.83139917,3826.8,3826.6,0.00682109]
[1641217720354,1.3069308,3826.8,3826.6,0.00682109]
[1641217721156,1.3069308,3826.8,3826.1,0.00966321]
[1641217721356,1.9891989,3826.8,3826.1,0.00966321]
[1641217721555,1.9891989,3826.8,3826.1,0.66312321]
[1641217721854,1.9891989,3826.8,3826.2,0.00909478]
[1641217722055,0.65348,3826.7,3826.2,0.00909478]
[1641217722255,0.65348,3826.7,3826.2,0.7701397]
[1641217722698,0.65348,3826.7,3826.3,0.00852636]
[1641217722894,0.65348,3826.7,3826.3,0.76957128]
[1641217723298,0.65348,3826.7,3826.4,0.00795794]
[1641217723696,0.65348,3826.7,3826.4,0.76900286]
[1641217724095,0.65348,3826.7,3826.5,0.00738951]
[1641217724497,1.3069658,3826.7,3826.5,0.76843443]
[1641217724897,1.3069658,3826.7,3826.6,0.00682109]
[1641217725298,1.3069658,3826.7,3826.1,0.00966321]
[1641217725499,0.65349,3826.6,3826.0,0.01023163]
[1641217725903,0.65349,3826.6,3826.2,0.76111147]
[1641217726340,0.65349,3826.6,3826.3,0.00852636]
[1641217727044,0.65349,3826.6,3826.3,1.41031209]
[1641217727244,0.6822681,3826.8,3826.3,0.00852636]
[1641217727444,0.6822681,3826.8,3826.4,1.31472794]
[1641217727643,0.6822681,3826.8,3826.4,0.65337]
[1641217727844,0.6822681,3826.8,3826.5,0.76850098]
[1641217728247,0.6822681,3826.8,3826.6,0.00682109]
[1641217729249,1.3357181,3826.8,3826.6,0.00682109]
[1641217729448,1.3357181,3826.8,3826.4,0.00795794]
[1641217729848,1.3357181,3826.8,3826.0,0.01023163]
[1641217730494,1.989167,3826.8,3826.0,1.02620901]
[1641217730695,1.989167,3826.8,3826.3,0.65343]
[1641217731098,1.989167,3826.8,3826.4,0.00795794]
[1641217731295,1.989167,3826.8,3826.4,0.7688026]
[1641217731694,1.989167,3826.8,3826.5,0.00738951]
[1641217732099,0.65346,3826.7,3826.5,0.00738951]
[1641217732700,0.65346,3826.7,3826.2,0.00909478]
[1641217733102,0.65346,3826.7,3826.3,0.76088866]
[1641217733500,0.65346,3826.7,3826.4,0.00795794]
[1641217734651,0.6822681,3826.8,3826.4,0.00795794]
[1641217734856,0.6822681,3826.8,3826.4,1.31473794]
[1641217735051,0.6822681,3826.8,3826.5,0.3]
[1641217735253,0.6822681,3826.8,3826.5,0.30738951]
[1641217735552,0.6822681,3826.8,3826.6,0.00682109]
[1641217735755,2.18718661,3826.7,3826.6,0.00682109]
[1641217737151,2.18718661,3826.7,3826.1,0.00966321]
[1641217737604,2.18718661,3826.7,3826.6,1.1172819]
[1641217738001,2.18718661,3826.7,3826.6,1.12410299]
[1641217740204,2.18718661,3826.7,3826.6,0.00682109]
[1641217740604,2.18718661,3826.7,3826.5,0.00738951]
[1641217740912,2.18718661,3826.7,3826.6,0.6533]
[1641217741107,2.18718661,3826.7,3826.5,0.30738951]
[1641217741347,2.18718661,3826.7,3826.6,0.00682109]
[1641217746197,2.18718661,3826.7,3826.5,0.00738951]
[1641217751455,2.18718661,3826.7,3826.5,2.62064951]
[1641217751659,2.18718661,3826.7,3826.6,0.79409343]
[1641217751857,2.18718661,3826.7,3826.6,0.80091452]
[1641217752701,2.18718661,3826.7,3826.6,1.10091452]
[1641217756879,2.18718661,3826.7,3826.6,0.80091452]
[1641217758986,2.18718661,3826.7,3826.6,1.10091452]
[1641217759791,2.18718661,3826.7,3826.6,0.80091452]
[1641217772048,2.18718661,3826.7,3826.6,1.10091452]
[1641217773057,2.18718661,3826.7,3826.6,1.40091452]
[1641217774556,2.18718661,3826.7,3826.6,1.10091452]
[1641217774754,2.18718661,3826.7,3826.6,1.40091452]
[1641217775997,2.18718661,3826.7,3826.6,0.80091452]
[1641217777199,2.18718661,3826.7,3826.6,1.10091452]
[1641217777398,2.18718661,3826.7,3826.6,1.40091452]
[1641217779454,2.18718661,3826.7,3826.6,0.80091452]
[1641217781756,2.18718661,3826.7,3826.6,0.79409343]
[1641217790715,2.18718661,3826.7,3826.5,0.79409343]
[1641217791115,2.18718661,3826.7,3826.5,0.78180558]
[1641217795050,2.84064661,3826.7,3826.5,0.78180558]
[1641217796062,12.52217491,3826.6,3826.5,0.78180558]
[1641217796253,12.62217491,3826.6,3826.5,0.78180558]
[1641217796453,12.62857491,3826.6,3826.5,0.78919509]
[1641217796652,9.2,3826.5,3825.9,5.2275]
[1641217796856,0.6537,3826.2,3825.9,5.2275]
[1641217797052,0.6537,3826.2,3826.0,0.00284212]
[1641217797053,2.87467558,3826.1,3826.0,0.00284212]
[1641217797252,3.22093558,3826.1,3826.0,0.00284212]
[1641217797502,9.55338479,3826.1,3826.0,0.00284212]
[1641217798310,12.55409492,3826.1,3826.0,0.00284212]
[1641217799111,11.55409492,3826.1,3826.0,0.00284212]
[1641217799513,9.29307745,3826.1,3826.0,0.00284212]
[1641217799911,6.90409492,3826.1,3826.0,0.00284212]
[1641217802062,6.80369,3826.0,3825.9,5.2264527]
[1641217802262,9.91354646,3826.0,3825.9,5.2264527]
[1641217802864,6.41681967,3826.0,3825.9,5.2264527]
[1641217804467,3.76354646,3826.0,3825.9,5.2264527]
[1641217805106,4.76354646,3826.0,3825.9,5.2264527]
[1641217805508,7.4163968,3826.0,3825.9,5.2264527]
[1641217807010,7.5163968,3826.0,3825.9,5.2264527]
[1641217807210,7.5155968,3826.0,3825.9,5.2264527]
[1641217807410,11.1139968,3826.0,3825.9,5.2264527]
[1641217807611,11.0163968,3826.0,3825.9,5.2264527]
[1641217808215,8.36354646,3826.0,3825.9,5.2264527]
[1641217810460,8.46194646,3826.0,3825.9,5.2264527]
[1641217810859,8.46274646,3826.0,3825.9,5.2264527]
[1641217811059,8.36354646,3826.0,3825.9,5.2264527]
[1641217811859,7.4782043,3826.0,3825.9,5.2264527]
[1641217812062,25.9624043,3826.0,3825.9,0.5862527]
[1641217812260,30.76396295,3826.0,3825.4,0.0607041]
[1641217812501,9.85386,3825.5,3825.4,0.0607041]
[1641217812708,10.23486,3825.5,3825.4,0.0607041]
[1641217812903,11.34606,3825.5,3825.4,0.0607041]
[1641217813106,2.14686,3825.5,3825.4,0.0607041]
[1641217813306,1.21493413,3824.9,3824.6,0.65382]
[1641217813509,0.381,3824.8,3824.0,1.32265948]
[1641217813708,0.381,3824.8,3824.7,0.0073895]
[1641217814315,3.731,3824.8,3824.7,0.0073895]
[1641217814513,0.6538847,3824.5,3824.0,0.01136847]
[1641217814710,0.6538847,3824.5,3824.0,0.66524847]
[1641217814911,0.65388,3824.3,3824.0,0.66524847]
[1641217815110,0.65388,3824.3,3824.1,0.01080004]
[1641217815815,1.3077634,3824.3,3824.1,0.01080004]
[1641217816756,1.3077634,3824.3,3824.0,0.01136847]
[1641217817158,1.3077634,3824.3,3824.2,0.22854405]
[1641217817563,1.3077634,3824.3,3824.2,0.23877567]
[1641217818063,1.3077634,3824.3,3824.2,0.01023162]
[1641217818662,3.8177342,3824.3,3824.2,0.01023162]
[1641217818965,1.3077634,3824.3,3824.2,0.23877567]
[1641217819163,3.78089633,3824.3,3824.2,0.23877567]
[1641217819570,5.5497986,3824.3,3824.2,0.23877567]
[1641217819764,8.1497986,3824.3,3824.2,0.23877567]
[1641217820007,6.86669633,3824.3,3824.2,0.01023162]
[1641217820204,6.86429633,3824.3,3824.2,0.01023162]
[1641217820403,6.86589633,3824.3,3824.0,0.01136847]
[1641217820704,1.10845702,3823.7,3823.5,0.01421059]
[1641217821004,0.65402,3823.6,3823.5,0.01421059]
[1641217821202,3.13348158,3823.6,3823.5,0.01421059]
[1641217821405,0.65402,3823.6,3823.3,0.01534743]
[1641217821803,3.10943193,3823.6,3823.3,0.01534743]
[1641217822005,0.65402,3823.6,3823.3,0.01534743]
[1641217822810,1.10845702,3823.7,3823.4,0.3]
[1641217823209,1.10845702,3823.7,3823.5,0.66819059]
[1641217823410,3.12672903,3823.8,3823.5,0.66819059]
[1641217823611,3.12672903,3823.8,3823.6,0.01364216]
[1641217823851,2.49323476,3823.7,3823.6,0.01364216]
[1641217824054,0.65397,3823.8,3823.6,0.01364216]
[1641217824660,1.03493,3824.1,3823.6,0.01364216]
[1641217824867,4.66036312,3824.3,3823.7,0.65393]
[1641217825063,4.66036312,3824.3,3823.4,0.01477901]
[1641217825263,4.66036312,3824.3,3823.8,0.01250532]
[1641217825264,4.6,3824.3,3823.8,0.01250532]
[1641217825465,4.6,3824.3,3823.1,0.01648428]
[1641217825665,4.6,3824.3,3823.2,0.3922618]
[1641217825965,4.6,3824.3,3823.3,0.01534743]
[1641217826166,4.6,3824.3,3823.3,0.31534743]
[1641217826368,4.6,3824.3,3823.8,1.3077]
[1641217826567,4.6,3824.3,3824.0,0.65377]
[1641217826966,0.01027315,3824.2,3824.1,0.01080004]
[1641217827817,0.6929279,3824.2,3824.1,0.01080004]
[1641217828817,0.6914436,3824.2,3824.1,1.42344302]
[1641217829626,0.6914436,3824.2,3824.1,4.33149471]
[1641217829820,0.00878885,3824.2,3824.1,4.33149471]
[1641217830320,1.306,3826.1,3825.1,1.30718]
[1641217830520,1.15109685,3826.0,3825.1,1.30718]
[1641217830719,1.15109685,3826.0,3825.2,0.00454739]
[1641217830720,0.65363,3825.8,3825.2,0.00454739]
[1641217831748,0.65363,3825.8,3825.4,0.65363]
[1641217832147,0.65363,3825.8,3825.5,0.00284212]
[1641217832758,0.65363,3825.8,3825.4,0.00341054]
[1641217833756,0.65363,3825.8,3825.3,0.00397896]
[1641217833953,0.65363,3825.8,3825.3,0.65763896]
[1641217834155,0.65363,3825.8,3825.3,0.00397896]
[1641217834354,0.65363,3825.8,3825.2,0.65363]
[1641217834355,0.6537,3825.6,3825.4,0.00341054]
[1641217834554,0.6537,3825.6,3825.3,0.00397896]
[1641217835434,1.15109685,3826.0,3825.4,0.65366]
[1641217835630,1.15109685,3826.0,3825.3,0.65762896]
[1641217835930,1.15109685,3826.0,3825.4,0.00341054]
[1641217836335,0.65365,3825.8,3825.6,0.65368]
[1641217836533,0.65365,3825.8,3825.4,0.00341054]
[1641217836737,0.65365,3825.8,3825.7,0.00170527]
[1641217836935,0.65365,3825.8,3825.3,0.00397896]
[1641217837338,3.38622058,3825.8,3825.3,0.00397896]
[1641217837541,2.73257058,3825.8,3825.4,0.65372]
[1641217837739,2.73257058,3825.8,3825.5,1.30721]
[1641217837944,2.73257058,3825.8,3825.5,1.31005212]
[1641217838139,2.73257058,3825.7,3825.6,0.00227369]
[1641217839164,2.73257058,3825.9,3825.6,0.00227369]
[1641217839766,0.65365,3825.8,3825.6,0.00227369]
[1641217840766,2.73257058,3825.7,3825.6,0.00227369]
[1641217845816,3.4150584,3825.7,3825.6,0.00227369]
[1641217847664,3.4150584,3825.7,3825.1,0.3]
[1641217848065,3.4150584,3825.7,3825.2,0.0022737]
[1641217848271,3.4150584,3825.7,3825.5,1.30721]
[1641217848468,2.73257058,3825.6,3825.5,1.30721]
[1641217848667,0.68248782,3825.7,3825.5,1.30721]
[1641217849066,2.6,3825.9,3825.5,1.30721]
[1641217849467,0.00113684,3825.8,3825.6,0.65347]
[1641217849667,0.00113684,3825.8,3825.6,1.30695]
[1641217851312,0.00113684,3825.8,3825.6,4.36633134]
[1641217851712,0.00113684,3825.8,3825.6,1.7643789]
[1641217854668,0.00113684,3825.8,3825.7,10.95695041]
[1641217855065,0.06036005,3826.1,3825.7,10.95695041]
[1641217855266,0.06036005,3826.1,3825.8,0.65343]
[1641217855469,0.00113685,3826.0,3825.8,0.65343]
[1641217856865,0.00113685,3826.0,3825.8,1.1108371]
[1641217858112,0.06036005,3826.1,3825.8,6.7108371]
[1641217858311,0.06036005,3826.1,3825.9,3.28735916]
[1641217858511,0.06036005,3826.1,3825.9,0.65341]
[1641217859316,0.13819997,3826.8,3826.3,1.3069]
[1641217859813,0.06433867,3826.7,3826.3,1.3069]
[1641217860215,0.00341054,3826.6,3826.3,1.3069]
[1641217860617,0.00284212,3826.5,3826.3,1.3069]
[1641217861016,0.00227369,3826.4,3826.3,1.3069]
[1641217861266,0.00227369,3826.4,3826.3,0.65345]
[1641217864768,0.00227369,3826.4,3826.3,0.60345]
[1641217868618,0.00227369,3826.4,3826.3,1.23939398]
[1641217870856,0.00227369,3826.4,3826.3,0.60345]
[1641217873923,2.32935136,3826.6,3826.3,0.60345]
[1641217874124,2.32935136,3826.6,3826.3,1.25683]
[1641217874523,2.32935136,3826.6,3826.3,1.7141854]
[1641217874931,2.32935136,3826.6,3826.4,1.30673]
[1641217890237,0.381,3826.5,3826.4,1.30673]
[1641217890431,0.381,3826.5,3826.3,1.25683]
[1641217891033,1.03461,3826.5,3826.3,1.25683]
[1641217891265,1.6882126,3826.5,3826.3,1.25683]
[1641217891463,2.19553327,3826.4,3826.3,0.60345]
[1641217894068,2.19553327,3826.4,3826.3,1.35126972]
[1641217894468,2.19553327,3826.4,3826.3,0.60345]
[1641217895918,2.19553327,3826.4,3826.3,1.35128203]
[1641217897724,2.19553327,3826.4,3826.3,0.60345]
[1641217898221,2.84914327,3826.5,3826.2,1.6069]
[1641217899075,2.19553327,3826.5,3826.2,1.6069]
[1641217899276,2.19553327,3826.5,3826.3,0.65347]
[1641217899477,3.66325267,3826.7,3826.2,1.6069]
[1641217899478,4.83362665,3826.4,3826.2,1.6069]
[1641217900081,2.19553327,3826.4,3826.2,1.6069]
[1641217900882,1.77606783,3826.3,3826.2,1.6069]
[1641217901282,1.77606783,3826.3,3826.2,1.60803684]
[1641217901683,1.77606783,3826.3,3826.2,1.30803684]
[1641217902082,0.65353,3826.4,3826.2,1.30803684]
[1641217902282,0.65353,3826.4,3826.2,2.05595134]
[1641217903121,2.19553327,3826.3,3826.2,1.30803684]
[1641217906369,2.19553327,3826.3,3826.2,0.80803684]
[1641217910835,2.19553327,3826.3,3826.2,0.00113684]
[1641217911334,2.87789529,3826.3,3826.2,0.00113684]
[1641217917280,2.87789529,3826.3,3826.2,0.82134199]
[1641217917523,2.87789529,3826.3,3826.2,0.82020515]
[1641217917720,2.87789529,3826.3,3826.1,0.82191042]
[1641217917918,0.65354,3826.2,3826.1,0.82191042]
[1641217918119,4.62420278,3826.2,3826.1,0.00170527]
[1641217918723,2.42866951,3826.2,3826.1,0.82191042]
[1641217919219,4.62420278,3826.2,3826.1,0.00170527]
[1641217919421,3.97066278,3826.2,3826.1,0.65524527]
[1641217920620,3.97066278,3826.2,3826.1,1.47545042]
[1641217925924,3.97066278,3826.2,3826.1,1.77545042]
[1641217931075,3.97066278,3826.2,3826.1,1.47545042]
[1641217933723,2.19553327,3826.2,3826.1,1.47545042]
[1641217934124,3.97154324,3826.2,3826.1,1.47545042]
[1641217934527,1.77600997,3826.2,3826.1,1.47545042]
[1641217934925,1.78627744,3826.2,3826.1,1.47545042]
[1641217935326,3.98181071,3826.2,3826.1,1.47545042]
[1641217942927,3.98181071,3826.2,3826.1,1.4807016]
[1641217943974,2.20580074,3826.2,3826.1,1.4807016]
[1641217944675,3.98111156,3826.2,3826.1,1.4807016]
[1641217944879,3.98111156,3826.2,3826.1,1.7807016]
[1641217945281,2.20580074,3826.2,3826.1,1.7807016]
[1641217945783,2.20580074,3826.2,3826.1,2.0807016]
[1641217946580,2.20580074,3826.2,3826.1,1.26049645]
[1641217947182,2.20580074,3826.2,3826.1,1.78030634]
[1641217947387,2.20580074,3826.2,3826.1,1.48030634]
[1641217947846,3.98145064,3826.2,3826.1,1.48030634]
[1641217948245,3.98145064,3826.2,3826.1,1.47860107]
[1641217948648,3.98145064,3826.2,3826.1,1.77860107]
[1641217949045,3.98145064,3826.2,3826.1,2.07860107]
[1641217949649,2.20580074,3826.2,3826.1,1.77860107]
[1641217950648,2.20580074,3826.2,3826.1,1.42506107]
[1641217951371,2.20580074,3826.2,3826.1,0.60525118]
[1641217951775,2.20580074,3826.2,3826.1,0.00525118]
[1641217951975,2.20580074,3826.2,3826.1,0.82500376]
[1641217952476,2.20580074,3826.2,3826.1,0.00525118]
[1641217953077,2.20580074,3826.2,3826.1,0.82500376]
[1641217954778,2.20580074,3826.2,3826.1,1.12500376]
[1641217955920,2.20580074,3826.2,3826.1,0.82500376]
[1641217967176,3.98178162,3826.2,3826.1,0.82500376]
[1641217968382,2.20580074,3826.2,3826.1,0.82500376]
[1641217969181,3.98178162,3826.2,3826.1,0.82500376]
[1641217972326,2.20580074,3826.2,3826.1,0.82500376]
[1641217974284,2.05206958,3826.2,3826.1,0.82500376]
[1641217976091,3.82805046,3826.2,3826.1,0.82500376]
[1641217980625,6.28580254,3826.2,3826.1,1.12500376]
[1641217980826,6.30664066,3826.2,3826.1,0.82500376]
[1641217981777,6.30664066,3826.2,3826.1,1.12500376]
[1641217982778,3.82805046,3826.2,3826.1,1.12500376]
[1641217983781,3.82805046,3826.2,3826.1,0.82500376]
[1641217983982,6.6478285,3826.2,3826.1,0.82030376]
[1641217984381,3.82805046,3826.2,3826.1,0.82030376]
[1641217986033,2.05206958,3826.2,3826.1,0.00055118]
[1641217986236,4.82540126,3826.2,3826.1,0.00055118]
[1641217987032,5.82540126,3826.2,3826.1,0.00055118]
[1641217987233,4.82540126,3826.2,3826.1,0.00055118]
[1641217988972,4.82540126,3826.2,3826.1,0.00467306]
[1641217990074,5.82540126,3826.2,3826.1,0.00467306]
[1641217990478,5.20640126,3826.2,3826.1,0.00467306]
[1641217992084,6.20640126,3826.2,3826.1,0.00467306]
[1641217994648,6.25284762,3826.2,3826.1,0.00467306]
[1641217994951,6.35364762,3826.2,3826.1,0.00467306]
[1641217995151,6.35764762,3826.2,3826.1,0.00467306]
[1641217995550,6.35684762,3826.2,3826.1,0.00467306]
[1641217995955,0.65375,3825.5,3824.8,4.1913]
[1641217996153,0.381,3825.4,3824.8,4.1913]
[1641217996406,0.381,3825.4,3824.9,0.00852635]
[1641217996806,0.68250308,3825.3,3824.9,0.00852635]
[1641217997007,0.65374,3825.2,3824.9,0.46612455]
[1641217997207,0.65374,3825.2,3824.9,1.11983455]
[1641217997407,2.70580958,3825.2,3825.0,0.95301874]
[1641217997604,2.70580958,3825.2,3825.0,1.25301874]
[1641217997905,2.05206958,3825.2,3825.1,0.0073895]
[1641217998104,0.68250308,3825.3,3825.1,0.95245032]
[1641217998308,0.68250308,3825.3,3825.1,2.06371792]
[1641217998507,0.68250308,3825.3,3825.2,0.00682108]
[1641217998908,0.68250308,3825.3,3825.2,0.9518819]
[1641218001626,0.6927728,3825.3,3825.2,0.9518819]
[1641218004979,3.15509276,3825.3,3825.2,0.9518819]
[1641218005178,3.19052244,3825.3,3825.2,0.9518819]
[1641218005377,0.6927728,3825.3,3825.2,0.9518819]
[1641218008331,3.2927728,3825.3,3825.2,0.9518819]
[1641218008734,5.77712692,3825.3,3825.2,0.9518819]
[1641218008932,3.2927728,3825.3,3825.2,0.9518819]
[1641218009534,5.7614948,3825.3,3825.2,0.9518819]
[1641218009733,3.2927728,3825.3,3825.2,0.9518819]
[1641218010333,3.2927728,3825.3,3825.2,1.2518819]
[1641218012183,3.2927728,3825.3,3825.2,0.30682108]
[1641218012584,3.2927728,3825.3,3825.2,0.00682108]
[1641218013189,3.2927728,3825.3,3825.2,1.05915697]
[1641218013788,5.17735106,3825.3,3825.2,1.05915697]
[1641218014890,5.17735106,3825.3,3825.2,1.0627015]
[1641218015342,5.17735106,3825.3,3825.2,0.01036561]
[1641218016146,5.17735106,3825.3,3825.2,0.98890455]
[1641218024046,5.17735106,3825.3,3825.2,4.18890455]
[1641218024347,5.17735106,3825.3,3825.2,0.98890455]
[1641218027991,4.49484798,3825.3,3825.2,3.88890455]
[1641218028392,4.49484798,3825.3,3825.2,3.88208347]
[1641218028593,4.49484798,3825.3,3825.2,0.98208347]
[1641218029192,4.49484798,3825.3,3825.2,2.30474295]
[1641218029799,4.49484798,3825.3,3825.2,0.98208347]
[1641218033805,4.35165085,3825.3,3825.2,12.11313443]
[1641218034006,1.77074371,3826.1,3825.6,0.65343]
[1641218034205,1.77074371,3826.1,3825.8,0.4573974]
[1641218034609,1.77074371,3826.1,3825.8,0.7573974]
[1641218034806,0.0604718,3826.4,3825.8,0.7573974]
[1641218035010,0.0604718,3826.4,3826.3,1.19562528]
[1641218035204,1.77074371,3826.5,3826.3,1.19562528]